bitfinex/quotes_ETHUSD_20240902
["timestamp","ask_amount","ask_price","bid_price","bid_amount"]
[1725314024214,3.13787,2549.5,2549.0,3.13839]
[1725314024416,3.13787,2549.5,2549.3,0.05907985]
[1725314024572,3.13787,2549.5,2549.1,0.48724486]
[1725314024774,2.4827,2549.4,2549.1,0.48724486]
[1725314025323,2.4827,2549.4,2548.8,3.13866]
[1725314025525,5.62076,2549.4,2548.9,1.7340586]
[1725314025829,5.62076,2549.4,2549.0,0.48727086]
[1725314026023,3.13812,2549.3,2549.0,0.48727086]
[1725314027620,2.3158,2549.2,2549.0,0.48727086]
[1725314029725,2.3158,2549.2,2548.8,4.8727086]
[1725314032442,2.3158,2549.2,2548.9,0.05967777]
[1725314036845,5.45406,2549.2,2548.9,0.05967777]
[1725314038049,5.45406,2549.2,2548.7,1.7340586]
[1725314038222,5.45406,2549.2,2549.0,0.06009674]
[1725314038548,5.45406,2549.2,2548.7,1.7340586]
[1725314038761,5.45406,2549.2,2549.1,0.05998971]
[1725314039050,5.45406,2549.2,2548.7,1.7340586]
[1725314039235,5.45406,2549.2,2549.1,0.05998971]
[1725314039561,5.45406,2549.2,2549.1,0.06003904]
[1725314039918,5.45406,2549.2,2549.1,0.05807671]
[1725314040221,5.45406,2549.2,2548.7,1.7340586]
[1725314040440,5.45406,2549.2,2549.1,0.05618919]
[1725314040761,5.45406,2549.2,2548.7,2.53524646]
[1725314041047,5.45406,2549.2,2549.1,0.05618919]
[1725314041255,5.45406,2549.2,2548.7,2.53524646]
[1725314041412,5.45406,2549.2,2549.1,0.05618919]
[1725314041609,5.45406,2549.2,2548.7,2.53524646]
[1725314041925,5.45406,2549.2,2548.8,0.56741465]
[1725314042117,3.13837,2549.1,2548.8,0.62392493]
[1725314043256,6.27682,2549.1,2548.8,0.62392493]
[1725314043417,5.39108,2549.0,2548.8,0.62392493]
[1725314044032,5.39108,2549.0,2548.8,0.05651028]
[1725314044452,5.39108,2549.0,2548.6,1.7340586]
[1725314044651,5.39108,2549.0,2548.9,0.05640324]
[1725314044652,2.2526,2549.0,2548.9,0.05640324]
[1725314044840,2.2526,2549.0,2548.8,1.7340586]
[1725314045154,2.2526,2549.0,2548.6,3.13895]
[1725314045155,2.2526,2549.0,2548.9,0.05646351]
[1725314045380,2.2526,2549.0,2548.0,3.13959]
[1725314045381,2.2941,2548.9,2548.0,3.13959]
[1725314045683,2.2941,2548.4,2548.1,1.7340586]
[1725314045837,2.2941,2548.4,2548.2,0.48736486]
[1725314047378,2.2941,2548.4,2548.3,0.05727031]
[1725314047674,2.2941,2548.4,2548.2,0.48736486]
[1725314047883,2.2941,2548.4,2548.3,0.05727031]
[1725314048541,2.2941,2548.4,2548.2,0.48736486]
[1725314048742,2.2941,2548.4,2548.3,0.05727031]
[1725314048966,2.2941,2548.4,2548.2,0.48736486]
[1725314049170,2.2941,2548.4,2548.3,0.05727031]
[1725314049351,2.2941,2548.4,2548.2,0.48736486]
[1725314049566,2.2941,2548.4,2548.3,0.05727031]
[1725314049882,2.2941,2548.4,2548.3,0.22786938]
[1725314050045,2.2941,2548.4,2548.3,0.28513969]
[1725314052492,2.2941,2548.4,2548.3,0.05727031]
[1725314052890,2.2941,2548.4,2548.2,0.48736486]
[1725314053061,2.2941,2548.4,2548.3,0.0575335]
[1725314053463,3.13916,2548.5,2548.2,0.48736486]
[1725314053783,3.13916,2548.5,2548.3,0.05748963]
[1725314053784,5.39916,2548.5,2548.3,0.05748963]
[1725314053992,8.53834,2548.5,2548.1,1.7340586]
[1725314054145,8.53834,2548.5,2548.4,0.05738255]
[1725314054483,5.39916,2548.5,2548.1,2.22142346]
[1725314054689,5.39916,2548.5,2548.4,0.05738255]
[1725314054840,5.39916,2548.5,2548.1,2.22142346]
[1725314055044,5.39916,2548.5,2548.4,0.05738255]
[1725314055244,5.39916,2548.5,2548.1,2.22142346]
[1725314055471,5.39916,2548.5,2548.4,0.05738255]
[1725314055677,5.39916,2548.5,2548.2,0.53610135]
[1725314055845,2.26,2548.7,2548.4,0.05738255]
[1725314056048,2.26,2548.9,2548.5,4.8731486]
[1725314056267,2.26,2548.9,2548.6,0.49516221]
[1725314056699,3.13848,2549.0,2548.7,0.05746709]
[1725314056861,3.13844,2549.1,2548.7,0.05746709]
[1725314057186,3.13844,2549.1,2548.7,0.84807488]
[1725314059073,2.3473,2549.2,2548.7,3.98692488]
[1725314059954,2.3473,2549.2,2548.7,3.98685488]
[1725314060288,3.0,2549.3,2548.8,3.13871]
[1725314060463,3.0,2549.3,2548.9,0.71255649]
[1725314060784,3.0,2549.3,2548.9,0.76972724]
[1725314063298,3.0,2549.3,2548.9,3.90830724]
[1725314063806,3.0,2549.3,2548.9,0.76972724]
[1725314064094,3.0,2549.3,2548.9,0.05717075]
[1725314064307,6.13812,2549.3,2548.9,0.05717075]
[1725314065083,3.13812,2549.3,2548.9,0.05717075]
[1725314071376,2.4513,2549.0,2548.9,0.05717075]
[1725314071578,3.13842,2549.1,2548.6,3.13897]
[1725314071815,3.13842,2549.1,2548.7,0.05677628]
[1725314072918,2.3391,2549.0,2548.7,0.05677628]
[1725314076023,3.13842,2549.1,2548.7,0.05677628]
[1725314076610,3.13842,2549.1,2548.7,3.19561628]
[1725314077182,3.13842,2549.1,2548.7,0.05677628]
[1725314077388,6.27688,2549.1,2548.5,5.4696776]
[1725314077585,3.13849,2549.0,2548.8,0.05675694]
[1725314077822,5.43379,2549.0,2548.5,3.139]
[1725314078023,5.43379,2549.0,2548.9,0.05671567]
[1725314078286,5.43379,2549.0,2548.5,3.139]
[1725314078495,5.43379,2549.0,2548.9,0.05671567]
[1725314078724,5.43379,2549.0,2548.5,3.139]
[1725314078926,5.43379,2549.0,2548.9,0.05671567]
[1725314079092,5.43379,2549.0,2548.5,3.139]
[1725314079293,5.43379,2549.0,2548.9,0.05671567]
[1725314079810,5.43379,2549.0,2548.5,3.139]
[1725314080125,5.43379,2549.0,2548.9,0.05671567]
[1725314080322,5.43379,2549.0,2548.5,3.139]
[1725314080818,3.13862,2548.9,2548.6,0.05703681]
[1725314081523,2.3709,2548.8,2548.6,0.05703681]
[1725314081730,2.3709,2548.8,2548.4,12.1532686]
[1725314081928,2.3709,2548.8,2548.5,3.19624388]
[1725314082134,2.3709,2548.8,2548.5,0.05714388]
[1725314083330,2.3146,2549.0,2548.6,3.13889]
[1725314083581,2.3146,2549.0,2548.7,0.05691879]
[1725314087266,3.13871,2548.9,2548.7,0.05691879]
[1725314087459,2.3355,2548.8,2548.7,0.05691879]
[1725314087662,2.3355,2548.8,2548.3,3.13932]
[1725314087825,2.3355,2548.8,2548.7,0.05691879]
[1725314088025,2.3355,2548.8,2548.3,3.13932]
[1725314088263,2.3355,2548.8,2548.7,0.05691879]
[1725314088437,5.47423,2548.8,2548.3,3.13932]
[1725314088628,5.47423,2548.8,2548.7,0.05691879]
[1725314089155,5.47423,2548.8,2548.3,3.13932]
[1725314089460,5.47423,2548.8,2548.7,0.05691879]
[1725314089638,5.47423,2548.8,2548.3,3.13932]
[1725314089835,5.47423,2548.8,2548.7,0.05691879]
[1725314090351,5.47423,2548.8,2548.3,3.13932]
[1725314090532,5.47423,2548.8,2548.7,0.05691879]
[1725314090736,5.47423,2548.8,2548.3,3.13932]
[1725314091050,5.47423,2548.8,2548.4,0.05723999]
[1725314092179,3.13905,2548.6,2548.4,0.05723999]
[1725314092340,3.13905,2548.6,2548.2,7.28]
[1725314092665,3.13904,2548.6,2548.3,0.05745124]
[1725314093166,3.13904,2548.6,2548.2,7.28]
[1725314093368,3.13904,2548.6,2548.4,0.05734415]
[1725314093678,3.13904,2548.6,2548.2,7.28]
[1725314094169,3.13904,2548.6,2548.3,0.05745124]
[1725314094372,3.13904,2548.6,2548.2,7.28]
[1725314094732,3.13904,2548.6,2548.3,0.05745124]
[1725314095080,3.13904,2548.6,2548.2,7.28]
[1725314095270,3.13904,2548.6,2548.4,0.05734415]
[1725314095475,3.13904,2548.6,2548.3,0.05745124]
[1725314095661,3.13904,2548.6,2548.5,0.05723708]
[1725314095867,3.13904,2548.6,2548.4,0.05734415]
[1725314096184,3.13904,2548.6,2548.5,0.05723708]
[1725314096485,6.27808,2548.6,2548.2,7.28]
[1725314097082,6.27808,2548.6,2548.3,0.05745124]
[1725314097445,3.13904,2548.6,2548.1,3.13958]
[1725314097647,3.13904,2548.6,2548.4,0.05734415]
[1725314097960,5.54095,2548.7,2548.5,0.05723708]
[1725314098267,5.54095,2548.7,2548.2,3.13939]
[1725314098475,5.54095,2548.7,2548.6,0.05713002]
[1725314098670,5.54095,2548.7,2548.2,3.13939]
[1725314098869,5.54095,2548.7,2548.6,0.05713002]
[1725314099075,6.408926,2548.7,2548.6,0.05713002]
[1725314099280,6.408926,2548.7,2548.2,3.13939]
[1725314099587,5.54095,2548.7,2548.2,3.13939]
[1725314099753,5.54095,2548.7,2548.3,0.05745124]
[1725314099959,5.54095,2548.7,2548.2,3.13939]
[1725314100289,5.54095,2548.7,2548.4,0.05734415]
[1725314100492,5.54095,2548.7,2548.3,0.05745124]
[1725314100649,5.54095,2548.7,2548.5,0.05723708]
[1725314100851,5.54095,2548.7,2548.2,3.13939]
[1725314101195,3.13898,2548.6,2548.1,3.13956]
[1725314101359,3.13898,2548.6,2548.3,0.05745124]
[1725314101564,5.44184,2548.5,2548.3,0.05745124]
[1725314101868,5.44184,2548.5,2548.0,6.22273496]
[1725314102040,5.44184,2548.5,2548.4,0.05734415]
[1725314102244,5.44184,2548.5,2548.0,9.36238496]
[1725314102478,5.44184,2548.5,2548.4,0.05734415]
[1725314102667,5.44184,2548.5,2548.0,9.36238496]
[1725314102871,5.44184,2548.5,2548.4,0.05734415]
[1725314103039,5.44184,2548.5,2548.0,6.22273496]
[1725314103242,5.44184,2548.5,2548.4,0.05734415]
[1725314103482,5.44184,2548.5,2548.0,4.8736486]
[1725314103657,5.44184,2548.5,2548.4,0.05734415]
[1725314103857,5.44184,2548.5,2548.0,4.8736486]
[1725314104053,5.44184,2548.5,2548.4,0.05734415]
[1725314104257,5.44184,2548.5,2548.0,4.8736486]
[1725314104492,5.44184,2548.5,2548.4,0.05734415]
[1725314104808,5.44184,2548.5,2548.0,4.8736486]
[1725314104957,5.44184,2548.5,2548.4,0.05734415]
[1725314105169,5.44184,2548.5,2548.0,4.8736486]
[1725314105486,5.44184,2548.5,2548.1,0.05766542]
[1725314106349,3.13924,2548.4,2548.1,0.05766542]
[1725314111284,2.3027,2548.5,2548.1,0.05766542]
[1725314111672,5.44182,2548.5,2548.1,0.05766542]
[1725314118095,5.44182,2548.5,2548.1,3.19724542]
[1725314118598,2.3027,2548.5,2548.1,3.19724542]
[1725314121591,5.44181,2548.5,2548.1,3.19724542]
[1725314122007,2.3027,2548.5,2548.1,3.19724542]
[1725314122821,3.13947,2548.2,2548.1,0.05766542]
[1725314122988,3.13947,2548.2,2547.7,3.53369]
[1725314123318,3.13947,2548.2,2548.1,0.05808213]
[1725314123823,5.53094,2548.3,2547.8,3.13995]
[1725314123976,5.53094,2548.3,2548.1,0.05808213]
[1725314124182,6.397958,2548.3,2547.8,3.13995]
[1725314124478,5.53094,2548.3,2547.9,0.05829635]
[1725314124982,3.13934,2548.3,2547.9,0.05829635]
[1725314125190,2.3916,2548.2,2547.9,0.05829635]
[1725314126215,3.13934,2548.3,2547.9,0.05829635]
[1725314126431,3.13934,2548.3,2547.9,1.11426585]
[1725314126588,3.13924,2548.4,2548.0,2.4874]
[1725314126792,3.13924,2548.4,2548.0,2.54558924]
[1725314129206,3.13913,2548.5,2548.0,5.68524924]
[1725314129426,3.0,2548.4,2548.0,5.68524924]
[1725314134310,3.0,2548.4,2548.0,3.19784924]
[1725314135140,3.0,2548.4,2548.1,3.13957]
[1725314135499,3.0,2548.4,2548.2,0.0580902]
[1725314137889,8.53057,2548.6,2548.2,0.0580902]
[1725314138051,9.083612,2548.6,2548.2,0.0580902]
[1725314142107,9.083612,2548.6,2548.2,3.1975202]
[1725314143991,9.083612,2548.6,2548.2,0.0580902]
[1725314144595,9.083612,2548.6,2548.2,3.1975502]
[1725314149921,5.3916,2548.6,2548.2,3.1975502]
[1725314150117,3.0,2548.5,2548.4,3.13922]
[1725314150323,2.3916,2548.6,2548.4,3.13922]
[1725314150495,2.3916,2548.6,2548.4,0.05787053]
[1725314150692,2.3916,2548.6,2548.2,3.13936]
[1725314151015,2.3916,2548.6,2548.2,6.27876]
[1725314151189,2.3916,2548.6,2548.3,0.05797762]
[1725314151394,2.3916,2548.6,2548.2,6.27876]
[1725314151609,2.3916,2548.6,2548.3,0.05797762]
[1725314151808,2.3916,2548.6,2548.2,6.27876]
[1725314152126,2.3916,2548.6,2548.4,0.05787053]
[1725314152325,2.3916,2548.6,2548.3,0.05797762]
[1725314152485,2.3916,2548.6,2548.5,0.05776346]
[1725314152829,3.0,2548.7,2548.5,0.05776346]
[1725314152993,3.0,2548.7,2548.3,3.13934]
[1725314153195,3.0,2548.7,2548.4,0.05787053]
[1725314158794,3.0,2548.7,2548.1,3.13958]
[1725314159036,3.0,2548.7,2548.2,0.05599167]
[1725314162571,6.13886,2548.7,2548.2,0.05599167]
[1725314163612,3.0,2548.7,2548.3,2.3027]
[1725314163829,3.0,2548.7,2548.4,0.0557775]
[1725314169428,6.13863,2548.9,2548.4,0.29162525]
[1725314173323,6.13863,2548.9,2548.4,0.0557775]
[1725314180071,6.13863,2548.9,2548.4,3.1949975]
[1725314180470,6.13863,2548.9,2548.4,0.0557775]
[1725314185301,6.13863,2548.9,2548.4,3.1949775]
[1725314186102,6.13863,2548.9,2548.4,0.0557775]
[1725314187002,6.13863,2548.9,2548.4,3.1949775]
[1725314190222,3.0,2548.9,2548.6,2.2932]
[1725314190436,3.0,2549.0,2548.7,3.13879]
[1725314190635,3.0,2549.2,2548.8,2.2932]
[1725314190800,3.13821,2549.3,2548.8,2.2932]
[1725314190997,3.13821,2549.3,2548.9,0.0549571]
[1725314192306,3.0,2549.5,2548.9,4.14176941]
[1725314192606,3.13781,2549.6,2549.1,2.2932]
[1725314192991,3.13781,2549.6,2549.2,0.05460862]
[1725314193436,3.13769,2549.7,2549.2,0.05460862]
[1725314193958,3.0,2549.6,2549.2,3.19282862]
[1725314194234,3.0,2549.7,2549.3,5.5047]
[1725314194393,6.27441,2550.1,2549.4,5.50451]
[1725314194715,6.27441,2550.1,2549.5,3.13786]
[1725314194716,4.05076649,2550.1,2549.5,3.13786]
[1725314194913,3.13716,2550.1,2549.5,3.19188999]
[1725314195132,3.13716,2550.1,2549.5,6.32967999]
[1725314195330,3.13716,2550.1,2549.5,3.19181999]
[1725314196037,3.0,2550.0,2549.5,3.19181999]
[1725314196191,3.0,2550.0,2549.5,4.23487085]
[1725314198081,3.13716,2550.1,2549.6,2.3666]
[1725314198285,3.13716,2550.1,2549.6,2.42025451]
[1725314199353,3.13716,2550.1,2549.6,5.63643162]
[1725314200355,3.13716,2550.1,2549.6,2.49868895]
[1725314201053,3.13716,2550.1,2549.6,5.63642895]
[1725314201254,3.13716,2550.1,2549.7,1.05082675]
[1725314201467,3.13716,2550.1,2549.8,0.05342414]
[1725314203156,6.27393,2550.3,2549.8,0.05342414]
[1725314203356,3.0,2550.2,2549.8,0.05342414]
[1725314203574,6.13702,2550.2,2549.8,0.05342414]
[1725314203772,6.13702,2550.2,2549.8,0.71428023]
[1725314205960,3.0,2550.2,2549.9,2.2999]
[1725314206260,3.0,2550.2,2549.9,2.35257051]
[1725314208083,3.0,2550.3,2550.0,0.66751624]
[1725314210611,3.13679,2550.4,2550.0,0.66751624]
[1725314212906,3.13664,2550.5,2550.1,2.4637]
[1725314213085,3.0,2550.4,2550.2,0.31312162]
[1725314213478,3.0,2550.4,2550.2,0.36534533]
[1725314214877,3.13664,2550.5,2550.2,0.36534533]
[1725314219010,3.13677,2550.4,2550.2,0.36534533]
[1725314226716,8.5845,2550.4,2550.2,0.05222371]
[1725314226917,5.44791,2550.2,2549.8,7.28]
[1725314227180,3.13732,2550.0,2549.8,7.28]
[1725314227368,3.13737,2549.9,2549.8,7.28]
[1725314227849,3.13737,2549.9,2549.5,1.7340586]
[1725314228002,3.13737,2549.9,2549.6,1.96041586]
[1725314236430,3.13725,2550.0,2549.6,1.96041586]
[1725314236804,3.13716,2550.1,2549.6,5.09808586]
[1725314237520,6.27438,2550.1,2549.6,5.09808586]
[1725314237721,3.13671,2550.5,2549.9,4.8713186]
[1725314237928,3.13671,2550.5,2550.0,0.07842281]
[1725314242124,2.98671,2550.5,2550.1,0.05198558]
[1725314242437,6.12344,2550.5,2550.1,0.05198558]
[1725314243199,3.13676,2550.4,2550.1,0.05198558]
[1725314244242,4.8701386,2551.0,2550.3,4.8709386]
[1725314244243,2.4688,2550.8,2550.3,4.8709386]
[1725314244442,2.4688,2550.8,2550.4,0.48709386]
[1725314244593,5.4688,2550.8,2550.4,0.53876963]
[1725314246216,8.60511,2550.8,2550.4,0.53876963]
[1725314246540,8.60511,2550.8,2550.5,0.36756496]
[1725314246920,8.60511,2550.8,2550.6,0.05146196]
[1725314247643,5.4688,2550.8,2550.6,0.05146196]
[1725314250737,2.3258,2551.0,2550.6,0.05146196]
[1725314250941,2.3258,2551.0,2550.6,0.34366595]
[1725314251152,5.4619,2551.0,2550.6,0.34366595]
[1725314251859,3.1361,2551.0,2550.6,0.34366595]
[1725314253028,3.13596,2551.1,2550.6,0.34366595]
[1725314253219,5.2591,2551.2,2550.6,3.48008595]
[1725314253421,5.2591,2551.2,2550.7,0.5660121]
[1725314253422,8.39491,2551.2,2550.7,0.5660121]
[1725314253815,8.39491,2551.2,2550.8,0.05096346]
[1725314254169,8.39491,2551.2,2550.9,0.05085659]
[1725314254370,8.39491,2551.2,2550.7,0.5660121]
[1725314254670,6.13581,2551.2,2551.0,0.05074973]
[1725314254834,6.13581,2551.2,2550.8,2.4181]
[1725314255318,6.13581,2551.2,2550.9,0.05085659]
[1725314255665,3.0,2551.2,2550.9,0.29775225]
[1725314255816,3.0,2551.3,2550.9,0.29775225]
[1725314258120,3.0,2551.3,2550.9,2.03181085]
[1725314258325,3.0,2551.3,2551.0,1.07222609]
[1725314258519,3.0,2551.4,2551.0,1.12259809]
[1725314258933,6.13553,2551.4,2551.0,1.12259809]
[1725314259576,3.13553,2551.4,2551.0,1.12259809]
[1725314259926,3.1355,2551.5,2551.0,4.25860809]
[1725314260120,2.3153,2551.6,2551.1,0.45055038]
[1725314260327,2.3153,2551.6,2551.2,0.04993388]
[1725314260570,9.3090669,2551.7,2551.2,3.18561388]
[1725314260571,0.0386369,2551.7,2551.2,3.18561388]
[1725314260736,0.0386369,2551.7,2551.3,2.41126203]
[1725314260923,0.0386369,2551.7,2551.3,2.46104529]
[1725314262361,0.0386369,2551.7,2551.4,2.3645]
[1725314262567,0.0386369,2551.7,2551.4,2.41410529]
[1725314262868,0.0386369,2551.7,2551.5,0.48253673]
[1725314263177,0.0386369,2551.7,2551.6,0.04939166]
[1725314270157,0.0386369,2551.7,2551.6,2.45639166]
[1725314271479,0.0386369,2551.7,2551.6,5.59167166]
[1725314274604,0.0386369,2551.7,2551.6,0.04939166]
[1725314274807,0.0386369,2551.7,2551.6,0.90309236]
[1725314275123,0.0386369,2551.7,2551.6,0.04939166]
[1725314280653,5.5024969,2551.7,2551.2,5.58105]
[1725314280842,5.5024969,2551.7,2551.6,0.04868591]
[1725314281046,5.5024969,2551.7,2551.3,1.7340586]
[1725314281214,5.5024969,2551.7,2551.6,0.04868591]
[1725314281418,5.5024969,2551.7,2551.3,1.7340586]
[1725314281658,5.5024969,2551.7,2551.6,0.04868591]
[1725314281812,5.5024969,2551.7,2551.3,1.7340586]
[1725314282148,5.5024969,2551.7,2551.3,3.50715646]
[1725314282449,5.5024969,2551.7,2551.4,0.04889954]
[1725314282645,2.3673369,2551.7,2551.4,0.04889954]
[1725314282863,2.3673369,2551.7,2551.6,9.09586]
[1725314282864,0.0386369,2551.7,2551.6,9.09586]
[1725314283008,0.0386369,2551.7,2551.6,13.905859]
[1725314283209,0.0386369,2551.7,2551.6,16.95457772]
[1725314283441,0.0386369,2551.7,2551.6,20.08985772]
[1725314283626,0.0386369,2551.7,2551.6,16.95457772]
[1725314284255,0.0386369,2551.7,2551.6,20.08985772]
[1725314284760,0.0386369,2551.7,2551.6,16.95457772]
[1725314285109,0.0386369,2551.7,2551.6,20.08985772]
[1725314285313,0.0386369,2551.7,2551.6,16.95457772]
[1725314285939,0.0386369,2551.7,2551.6,17.54388457]
[1725314286154,0.0386369,2551.7,2551.6,20.67916457]
[1725314286809,0.0386369,2551.7,2551.6,17.54388457]
[1725314287012,0.0386369,2551.7,2551.6,20.67916457]
[1725314287753,0.0386369,2551.7,2551.6,17.54388457]
[1725314289066,0.0386369,2551.7,2551.6,20.08985772]
[1725314289382,0.0386369,2551.7,2551.6,20.67916428]
[1725314289856,2.2547,2552.9,2552.7,3.13382]
[1725314290059,3.13315,2553.4,2552.8,1.7340586]
[1725314290060,2.4923,2553.3,2552.8,1.7340586]
[1725314290237,2.4923,2553.3,2552.9,3.13362]
[1725314290436,2.4923,2553.3,2552.9,3.18044788]
[1725314290779,2.4923,2553.3,2552.9,0.04682788]
[1725314291444,5.4923,2553.3,2552.9,0.04682788]
[1725314292593,8.6255,2553.3,2552.9,0.04682788]
[1725314292894,9.801365,2553.3,2552.9,0.04682788]
[1725314293141,7.309065,2553.3,2553.0,2.4844]
[1725314293388,3.13315,2553.4,2553.1,0.0466145]
[1725314294555,5.48745,2553.4,2553.1,0.0466145]
[1725314294775,6.349484,2553.4,2553.1,0.0466145]
[1725314295175,9.482634,2553.4,2553.1,0.0466145]
[1725314295382,6.349484,2553.4,2553.1,0.0466145]
[1725314297183,3.13324,2553.3,2552.9,0.0459915]
[1725314302006,2.3543,2553.4,2552.9,3.1796715]
[1725314302796,5.48745,2553.4,2552.9,3.1796715]
[1725314303627,2.3543,2553.4,2553.3,1.7340586]
[1725314304135,8.61138,2553.7,2553.3,0.04536262]
[1725314304436,8.74416,2553.7,2553.1,4.8674386]
[1725314304621,8.74416,2553.7,2553.4,0.04525595]
[1725314304622,5.61138,2553.7,2553.4,0.04525595]
[1725314304836,2.4786,2554.0,2553.6,1.7340586]
[1725314304997,0.1260143,2554.2,2553.9,1.7340586]
[1725314305192,0.1260143,2554.2,2554.1,1.7340586]
[1725314305635,0.1260143,2554.2,2554.1,2.26963457]
[1725314305843,0.1260143,2554.2,2554.1,5.40184457]
[1725314305995,0.1260143,2554.2,2554.1,4.98904147]
[1725314306202,0.1260143,2554.2,2554.1,4.91074537]
[1725314306395,0.1260143,2554.2,2554.1,4.98904261]
[1725314307153,0.1260143,2554.2,2554.1,7.31574261]
[1725314307353,0.1260143,2554.2,2554.1,11.84754463]
[1725314307945,0.1260143,2554.2,2554.1,13.86117225]
[1725314308844,0.1260143,2554.2,2554.1,14.25487225]
[1725314316225,0.1260143,2554.2,2554.1,11.92817225]
[1725314317963,0.1260143,2554.2,2554.1,11.53447225]
[1725314318304,0.1260143,2554.2,2554.1,4.18586299]
[1725314319165,2.5617143,2554.2,2554.1,4.18586299]
[1725314319368,2.5617143,2554.2,2554.1,0.04447677]
[1725314319672,2.5617143,2554.2,2553.8,4.14138622]
[1725314319870,2.5617143,2554.2,2554.1,0.05137283]
[1725314320083,2.5617143,2554.2,2553.8,4.14138622]
[1725314320294,5.6938443,2554.2,2554.1,0.05146822]
[1725314320566,3.13234,2554.0,2553.5,4.14138622]
[1725314320876,3.13234,2554.0,2553.6,0.05213459]
[1725314321785,2.4478,2553.9,2553.6,0.05213459]
[1725314322193,5.58028,2553.9,2553.6,0.05213459]
[1725314323120,3.13259,2553.8,2553.6,0.05213459]
[1725314323759,2.4478,2553.9,2553.6,0.05213459]
[1725314323994,5.58034,2553.9,2553.6,0.05213459]
[1725314327795,3.13259,2553.8,2553.6,0.05213459]
[1725314328020,5.6017,2553.7,2553.6,0.05213459]
[1725314328293,2.469,2553.4,2553.2,7.28]
[1725314328625,3.1332,2553.3,2552.9,4.14138622]
[1725314328832,3.13333,2553.2,2552.6,27.25536622]
[1725314329009,2.469,2553.0,2552.6,4.14138622]
[1725314329341,2.469,2553.0,2552.2,3.13447]
[1725314329342,3.13369,2552.9,2552.3,4.14138622]
[1725314329645,6.26748,2552.9,2552.3,4.14138622]
[1725314329807,2.469,2552.8,2552.3,4.14138622]
[1725314330196,2.419,2552.8,2552.3,4.14138622]
[1725314331525,2.419,2552.8,2552.3,7.27577622]
[1725314332237,2.419,2552.8,2552.4,0.05255407]
[1725314332449,3.13394,2552.7,2552.4,0.05255407]
[1725314332624,3.13394,2552.7,2552.0,7.27610622]
[1725314332800,3.13394,2552.7,2552.5,0.05242065]
[1725314333003,3.13394,2552.7,2552.0,7.27610622]
[1725314333229,3.13394,2552.7,2552.6,0.05228724]
[1725314333476,3.13394,2552.7,2552.0,7.27610622]
[1725314333656,3.13394,2552.7,2552.6,0.05228724]
[1725314333864,3.13394,2552.7,2552.1,3.90158062]
[1725314334066,3.13394,2552.7,2552.6,0.05228724]
[1725314334253,3.13394,2552.7,2552.0,7.27610622]
[1725314334462,3.13394,2552.7,2552.6,0.05228724]
[1725314334676,3.13394,2552.7,2552.1,3.13467]
[1725314334859,3.13407,2552.6,2552.2,0.05282095]
[1725314335040,3.13407,2552.6,2552.0,7.27609622]
[1725314335259,2.3178,2552.5,2552.1,0.0529544]
[1725314335977,5.45199,2552.5,2552.1,0.0529544]
[1725314336291,2.3178,2552.5,2552.1,0.0529544]
[1725314336974,5.452,2552.5,2552.1,0.0529544]
[1725314338411,3.13432,2552.4,2552.1,0.0529544]
[1725314339370,3.13432,2552.4,2551.8,6.26996]
[1725314339591,3.13432,2552.4,2552.2,0.0452751]
[1725314339800,3.13432,2552.4,2551.9,4.17602462]
[1725314340116,3.0,2553.0,2551.9,4.17602462]
[1725314340117,2.3178,2553.2,2552.9,3.13363]
[1725314340323,2.3178,2553.6,2553.2,3.13332]
[1725314340459,2.3178,2553.6,2553.4,3.13305]
[1725314340660,2.3178,2553.6,2553.5,0.05108701]
[1725314341205,3.13246,2553.9,2553.5,0.05108701]
[1725314341364,3.758925,2553.9,2553.5,0.05108701]
[1725314341563,3.758925,2553.9,2553.4,3.13299]
[1725314341766,3.758925,2553.9,2553.6,0.0509537]
[1725314341992,0.6076725,2553.8,2553.5,0.05108701]
[1725314342293,0.6076725,2553.8,2553.6,0.05558586]
[1725314342501,3.13287,2553.6,2553.1,3.13341]
[1725314343113,3.13287,2553.6,2552.8,4.14138622]
[1725314343114,2.3178,2553.2,2552.8,3.1338]
[1725314343274,2.54958,2553.2,2552.8,3.1338]
[1725314343612,3.13345,2553.1,2552.5,4.14138622]
[1725314343963,3.13345,2553.1,2552.4,3.13421]
[1725314344472,3.13358,2553.0,2552.4,6.26843]
[1725314344688,3.701883,2553.0,2552.4,6.26843]
[1725314344912,3.701883,2553.0,2552.5,3.13416]
[1725314345292,0.568303,2553.0,2552.5,3.13416]
[1725314346390,3.701983,2553.0,2552.4,3.13421]
[1725314346726,2.4849,2552.8,2552.4,3.13421]
[1725314346927,2.4849,2552.8,2552.2,7.27582622]
[1725314346928,5.61872,2552.8,2552.2,7.27582622]
[1725314347078,2.4849,2552.8,2552.3,3.1344]
[1725314347274,5.61871,2552.8,2552.4,0.04594537]
[1725314347478,6.58779983,2552.8,2552.4,0.04594537]
[1725314347678,6.58779983,2552.8,2552.2,10.41028622]
[1725314347980,6.58779983,2552.8,2552.3,3.18073427]
[1725314348877,6.58779983,2552.8,2552.3,0.04633427]
[1725314349126,3.13393,2552.7,2552.2,7.27582622]
[1725314349282,3.13393,2552.7,2552.4,0.04623158]
[1725314349477,4.14311051,2552.7,2552.2,7.27582622]
[1725314349701,4.14311051,2552.7,2552.3,0.04634596]
[1725314349904,4.14311051,2552.7,2552.2,7.27582622]
[1725314350107,4.14311051,2552.7,2552.4,0.04623158]
[1725314350294,4.14311051,2552.7,2552.3,0.04634596]
[1725314350493,4.14311051,2552.7,2552.2,7.27582622]
[1725314350831,4.14311051,2552.7,2552.3,0.04634596]
[1725314351024,3.79686105,2552.6,2552.2,4.14138622]
[1725314351193,0.66280105,2552.6,2552.2,4.14010597]
[1725314351384,2.3404,2552.5,2552.3,0.04649203]
[1725314351728,3.2675191,2552.5,2552.2,4.14010597]
[1725314352018,3.2675191,2552.5,2552.3,0.04649203]
[1725314352233,3.2675191,2552.5,2552.0,3.13471]
[1725314352394,0.64015791,2552.4,2552.0,3.13471]
[1725314352590,0.64015791,2552.4,2552.1,0.0467208]
[1725314353095,3.13444,2552.3,2551.7,3.13506]
[1725314353338,3.13444,2552.3,2551.8,0.04468972]